bitfinex-derivatives/quotes_SOLF0:USTF0_20251107
["timestamp","ask_amount","ask_price","bid_price","bid_amount"]
[1762557590521,2.97,162.74,162.72,3.05687539]
[1762557594225,2.97,162.74,162.72,0.04687539]
[1762557595725,2.97,162.73,162.72,0.04687539]
[1762557597824,2.97,162.71,162.69,4.13]
[1762557598028,2.97,162.7,162.69,4.13]
[1762557599822,2.97,162.7,162.68,0.04485785]
[1762557600328,2.97,162.69,162.68,0.04485785]
[1762557600528,4.88531189,162.69,162.68,0.04485785]
[1762557600723,5.5359,162.65,162.61,3.01]
[1762557600925,2.97,162.64,162.61,3.01]
[1762557601326,1.91531189,162.68,162.61,3.01]
[1762557601829,0.0419968,162.66,162.63,3.05533041]
[1762557603530,3.0719968,162.66,162.63,0.04533041]
[1762557604335,8.6074968,162.66,162.63,0.04533041]
[1762557604533,8.6074968,162.66,162.63,2.94533041]
[1762557604830,3.0719968,162.66,162.63,2.94533041]
[1762557605032,0.0419968,162.66,162.63,2.94533041]
[1762557605233,3.0719968,162.66,162.63,2.94533041]
[1762557606230,0.0419968,162.66,162.63,2.94533041]
[1762557607329,0.0419968,162.66,162.64,2.9]
[1762557612735,3.03,162.65,162.63,0.04533041]
[1762557612936,1.91531189,162.64,162.63,0.04533041]
[1762557613130,3.03,162.64,162.63,0.00905876]
[1762557613329,0.0419968,162.66,162.63,2.90905876]
[1762557614841,3.0719968,162.66,162.63,0.00905876]
[1762557616040,3.03,162.65,162.63,0.00905876]
[1762557616439,3.03,162.64,162.63,0.00905876]
[1762557617745,1.22,162.64,162.63,0.00905876]
[1762557618238,5.5359,162.65,162.63,0.00905876]
[1762557618744,3.03,162.64,162.63,0.00905876]
[1762557620040,1.22,162.64,162.63,0.00905876]
[1762557622640,1.22,162.64,162.58,1.78410268]
[1762557622842,2.99540668,162.6,162.47,2.9]
[1762557623043,3.03,162.59,162.47,2.9]
[1762557623541,3.03,162.59,162.46,2.99540668]
[1762557623542,3.03,162.59,162.48,2.9]
[1762557623745,0.04420461,162.55,162.52,0.0455662]
[1762557623951,3.07420461,162.55,162.52,0.0455662]
[1762557624244,3.03,162.54,162.52,0.0455662]
[1762557627644,5.58350461,162.55,162.52,2.9455662]
[1762557627851,0.04420461,162.55,162.52,2.9455662]
[1762557628039,3.07420461,162.55,162.52,0.0455662]
[1762557629555,3.07420461,162.55,162.52,2.9455662]
[1762557633756,0.04420461,162.55,162.52,2.9455662]
[1762557636154,5.5377,162.6,162.52,2.9455662]
[1762557636353,2.87,162.61,162.53,2.94]
[1762557637268,2.90923834,162.59,162.55,2.98641507]
[1762557637466,2.90923834,162.59,162.55,2.97870309]
[1762557637868,5.5383,162.58,162.55,2.97870309]
[1762557638061,2.90923834,162.59,162.55,2.97870309]
[1762557639671,0.03923834,162.59,162.55,2.97870309]
[1762557647171,0.03923834,162.59,162.55,8.51780309]
[1762557647379,0.03923834,162.59,162.56,3.13]
[1762557649080,0.03923834,162.59,162.56,8.6687]
[1762557649379,0.03923834,162.59,162.57,3.13]
[1762557649782,0.03923834,162.59,162.57,8.6684]
[1762557649976,8.6059,162.65,162.58,3.13]
[1762557650976,0.03895506,162.63,162.61,3.13]
[1762557653373,0.03895506,162.63,162.62,3.13]
[1762557662788,3.07,162.69,162.65,3.15]
[1762557663476,3.11,162.6,162.47,7.64232682]
[1762557663677,3.11,162.6,162.47,2.99540668]
[1762557663879,0.04250345,162.55,162.52,0.04051755]
[1762557665389,0.04250345,162.55,162.52,3.19051755]
[1762557666388,3.15250345,162.55,162.52,3.19051755]
[1762557668284,3.15250345,162.55,162.52,0.04051755]
[1762557668680,3.11,162.53,162.52,0.04051755]
[1762557669590,3.15250345,162.55,162.52,0.04051755]
[1762557671089,3.15250345,162.55,162.52,3.19051755]
[1762557671292,3.11,162.54,162.52,0.04051755]
[1762557675395,8.6496,162.54,162.52,0.04051755]
[1762557676996,3.11,162.53,162.52,0.04051755]
[1762557679297,0.04250345,162.55,162.52,3.19051755]
[1762557680197,0.04250345,162.55,162.52,8.73061755]
[1762557680400,0.04250345,162.55,162.53,3.15]
[1762557683304,3.15250345,162.55,162.52,3.19051755]
[1762557683601,3.11,162.63,162.54,3.15]
[1762557683903,3.11,162.63,162.55,3.15]
[1762557684295,3.11,162.61,162.55,3.15]
[1762557684604,3.15414844,162.6,162.56,3.19265907]
[1762557685899,0.04414844,162.6,162.57,1.91955941]
[1762557686100,3.11,162.67,162.6,3.15]
[1762557686693,3.11,162.7,162.62,3.15]
[1762557687001,3.15402432,162.68,162.64,3.19292709]
[1762557687805,3.15402432,162.68,162.64,7.82292709]
[1762557689794,3.15402432,162.68,162.64,4.67292709]
[1762557693805,0.04402432,162.68,162.65,3.0]
[1762557694100,0.04402432,162.68,162.67,3.0]
[1762557694702,0.04402432,162.68,162.66,4.91955941]
[1762557695700,0.04402432,162.68,162.67,3.0]
[1762557705699,0.04402432,162.68,162.66,3.17]
[1762557705904,2.91402432,162.68,162.64,11.16292709]
[1762557706304,2.91402432,162.68,162.64,7.99292709]
[1762557707313,2.91402432,162.68,162.64,11.16292709]
[1762557711124,2.91402432,162.68,162.65,3.17]
[1762557712923,0.04402432,162.68,162.66,3.17]
[1762557716822,0.04402432,162.68,162.64,7.99292709]
[1762557716823,2.87,162.67,162.64,7.99292709]
[1762557717824,2.87,162.65,162.64,7.99292709]
[1762557718031,2.87,162.65,162.64,3.36292709]
[1762557720423,2.87,162.62,162.57,3.17]
[1762557720623,2.87,162.59,162.58,3.97]
[1762557722027,2.9135631,162.6,162.58,3.97]
[1762557723034,8.4512631,162.6,162.58,3.97]
[1762557723234,4.89955941,162.59,162.58,3.97]
[1762557723426,0.0435631,162.6,162.58,2.45718133]
[1762557723735,0.0435631,162.6,162.58,5.52718133]
[1762557727022,3.0235631,162.6,162.58,2.45718133]
[1762557727724,4.89955941,162.59,162.58,2.45718133]
[1762557728434,4.89955941,162.59,162.58,8.133e-05]
[1762557728633,2.98,162.56,162.49,6.27]
[1762557728828,2.98,162.52,162.49,6.27]
[1762557729136,2.98,162.5,162.46,3.07]
[1762557729532,3.02069873,162.5,162.46,3.11326498]
[1762557730831,3.02069873,162.5,162.46,0.04326498]
[1762557731039,2.98,162.48,162.46,0.04326498]
[1762557731840,4.89955941,162.47,162.46,0.04326498]
[1762557732033,4.89955941,162.47,162.4,7.22]
[1762557732034,2.98,162.46,162.4,7.22]
[1762557732233,5.6472242,162.53,162.4,4.15]
[1762557732234,2.98,162.43,162.4,4.15]
[1762557732728,2.98,162.42,162.4,4.15]
[1762557732934,2.98,162.41,162.39,3.68]
[1762557733135,2.98,162.41,162.39,3.72584573]
[1762557737236,4.94075056,162.43,162.39,6.79584573]
[1762557737439,2.98,162.42,162.39,6.79584573]
[1762557739250,0.04119115,162.43,162.4,3.07]
[1762557745749,0.04119115,162.43,162.4,8.6141]
[1762557745947,0.04119115,162.43,162.41,3.07]
[1762557753658,3.21119115,162.43,162.39,3.72584573]
[1762557753864,3.21119115,162.43,162.39,6.69584573]
[1762557754254,3.21119115,162.43,162.4,2.97]
[1762557763573,8.75449115,162.43,162.4,2.97]
[1762557763871,3.11,162.42,162.4,2.97]
[1762557765774,8.69449115,162.43,162.4,2.97]
[1762557765970,3.15119115,162.43,162.4,2.97]
[1762557766169,0.04119115,162.43,162.4,2.97]
[1762557766570,3.15119115,162.43,162.4,2.97]
[1762557767981,8.69449115,162.43,162.4,2.97]
[1762557768472,3.11,162.42,162.4,2.97]
[1762557769881,8.69449115,162.43,162.4,2.97]
[1762557772873,8.6536,162.42,162.4,2.97]
[1762557773477,8.654,162.41,162.39,0.04584573]
[1762557773677,3.11,162.4,162.39,0.04584573]
[1762557774783,8.7572242,162.4,162.39,0.04584573]
[1762557774974,3.11,162.4,162.39,0.04584573]
[1762557775377,8.7572242,162.4,162.39,0.04584573]
[1762557776389,3.11,162.38,162.26,2.96]
[1762557776689,3.11,162.33,162.26,2.96]
[1762557777187,8.80414512,162.37,162.27,2.96]
[1762557777492,0.0422762,162.34,162.31,2.96]
[1762557785384,3.1222762,162.34,162.31,2.96]
[1762557785579,3.1222762,162.34,162.3,3.09139853]
[1762557786784,0.0422762,162.34,162.3,3.09139853]
[1762557788681,3.1222762,162.34,162.3,3.09139853]
[1762557791696,8.6686762,162.34,162.3,3.09139853]
[1762557795300,3.08,162.33,162.3,3.09139853]
[1762557795800,8.6686762,162.34,162.3,3.09139853]
[1762557797002,0.0422762,162.34,162.3,3.09139853]
[1762557797799,3.1222762,162.34,162.3,3.09139853]
[1762557800809,3.08,162.32,162.3,0.04139853]
[1762557801002,3.1222762,162.34,162.3,3.09139853]
[1762557801306,0.0422762,162.34,162.3,3.09139853]
[1762557803204,3.08,162.33,162.3,3.09139853]
[1762557805603,0.0422762,162.34,162.31,3.05]
[1762557805801,2.48779619,162.37,162.31,3.05]
[1762557806604,2.48779619,162.37,162.32,3.05]
[1762557806816,0.04219177,162.36,162.33,0.04724106]
[1762557807203,0.04219177,162.36,162.33,3.09724106]
[1762557808611,0.04219177,162.36,162.33,8.64374106]
[1762557808912,0.04219177,162.36,162.34,3.05]
[1762557812119,75.93211572,162.86,162.33,0.04724106]
[1762557812120,8.77414512,162.44,162.36,2.97]
[1762557812418,3.08,162.44,162.36,2.97]
[1762557812817,3.08,162.44,162.38,8.5148]
[1762557813113,0.03900109,162.43,162.39,0.04715227]
[1762557813314,3.05900109,162.43,162.39,3.01715227]
[1762557823824,8.60240109,162.43,162.39,3.01715227]
[1762557824215,3.05,162.42,162.39,3.01715227]
[1762557825028,3.05,162.42,162.39,0.04715227]
[1762557825219,3.05,162.4,162.39,0.04715227]
[1762557828330,4.29,162.4,162.39,0.04715227]
[1762557828526,4.29,162.4,162.35,3.88]
[1762557828732,3.05,162.36,162.35,3.88]
[1762557838835,4.97410684,162.36,162.35,3.88]
[1762557841024,10.5649385,162.37,162.35,3.88]
[1762557841228,3.05,162.36,162.35,3.88]
[1762557842238,0.04543166,162.37,162.36,3.18]
[1762557843338,0.04543166,162.37,162.35,7.06]
[1762557844532,3.16543166,162.37,162.35,3.88]
[1762557845230,3.12,162.36,162.35,3.88]
[1762557847224,5.04410684,162.36,162.35,3.88]
[1762557854339,5.546,162.35,162.34,0.04408486]
[1762557854841,8.666,162.35,162.34,0.04408486]
[1762557870867,3.12,162.35,162.34,0.04408486]
[1762557871072,11.28517678,162.37,162.34,0.04408486]
[1762557871073,3.12,162.36,162.34,3.22408486]
[1762557871766,0.04543166,162.37,162.34,3.22408486]
[1762557872163,3.16543166,162.37,162.34,0.04408486]
[1762557872369,8.5557,162.36,162.34,0.04408486]
[1762557873673,0.04543166,162.37,162.34,3.20408486]
[1762557874069,3.05543166,162.37,162.34,3.20408486]
[1762557874467,8.60083166,162.37,162.34,3.20408486]
[1762557874669,3.01,162.36,162.34,3.20408486]
[1762557876073,5.59083166,162.37,162.34,3.20408486]
[1762557876269,3.05543166,162.37,162.34,3.20408486]
[1762557876467,0.04543166,162.37,162.34,3.20408486]
[1762557877579,3.01,162.36,162.34,0.04408486]
[1762557878281,3.01,162.36,162.34,3.20408486]
[1762557878882,0.04543166,162.37,162.34,3.20408486]
[1762557879076,3.05543166,162.37,162.34,3.20408486]
[1762557883083,2.9,162.36,162.34,3.20408486]
[1762557884383,8.4458,162.36,162.34,0.04408486]
[1762557884685,2.9,162.35,162.34,0.04408486]
[1762557885586,0.04543166,162.37,162.35,2.94]
[1762557887085,0.04543166,162.37,162.36,2.94]
[1762557889691,2.9,162.44,162.38,2.94]
[1762557890591,2.94368097,162.43,162.4,2.94]
[1762557898093,2.94368097,162.43,162.39,0.04279878]
[1762557899195,2.94368097,162.43,162.39,2.98279878]
[1762557902396,3.06,162.42,162.39,0.04279878]
[1762557902792,3.06,162.4,162.39,0.04279878]
[1762557903898,3.06,162.37,162.33,3.03]
[1762557904899,3.10724862,162.37,162.33,3.07720618]
[1762557905092,8.65274862,162.37,162.33,3.07720618]
[1762557905393,0.04724862,162.37,162.33,3.07720618]
[1762557905595,0.04724862,162.37,162.34,3.03]
[1762557906489,0.04724862,162.37,162.36,3.03]
[1762557906698,8.6034,162.43,162.36,3.03]
[1762557907799,0.04167006,162.41,162.39,3.03]
[1762557913296,0.04167006,162.41,162.4,3.03]
[1762557916701,5.5425,162.46,162.4,3.03]
[1762557916902,8.6025,162.46,162.4,3.03]
[1762557917493,3.06,162.44,162.4,3.03]
[1762557917700,3.06,162.44,162.41,0.04290653]
[1762557918204,3.06,162.42,162.41,0.04290653]
[1762557920905,3.06,162.4,162.39,3.97]
[1762557921101,3.06,162.4,162.35,3.03]
[1762557921609,3.06,162.38,162.35,3.03]
[1762557921907,3.10661935,162.38,162.35,3.07649059]
[1762557922407,5.03008142,162.38,162.35,3.07649059]
[1762557923009,10.57518142,162.38,162.35,3.07649059]
[1762557923204,10.57518142,162.38,162.35,0.04649059]
[1762557923205,3.06,162.37,162.35,0.04649059]
[1762557925011,8.6054,162.37,162.35,0.04649059]
[1762557926702,3.06,162.36,162.35,0.04649059]
[1762557926910,4.98346207,162.36,162.35,0.04649059]
[1762557928503,3.06,162.34,162.31,3.94]
[1762557928702,3.06,162.32,162.31,3.94]
[1762557932209,7.51129271,162.33,162.31,6.88]
[1762557932210,0.04113064,162.33,162.31,6.88]
[1762557934213,3.02113064,162.33,162.31,6.88]
[1762557935313,3.02113064,162.33,162.31,3.94]
[1762557939422,8.56793064,162.33,162.31,3.94]
[1762557940818,4.90346207,162.32,162.31,3.94]
[1762557941123,0.04113064,162.33,162.32,2.96]
[1762557943031,2.94113064,162.33,162.31,3.94]
[1762557945128,2.9,162.32,162.31,3.94]
[1762557945523,2.9,162.32,162.3,3.00266262]
[1762557946628,2.9,162.31,162.3,0.04266262]
[1762557950328,8.4472,162.32,162.3,0.04266262]
[1762557951428,2.9,162.31,162.3,0.04266262]
[1762557951623,8.4472,162.32,162.3,0.04266262]
[1762557951829,2.9,162.31,162.3,0.04266262]
[1762557954431,5.5472,162.32,162.3,3.00266262]
[1762557955025,8.4472,162.32,162.3,3.00266262]
[1762557957129,8.4472,162.32,162.3,0.04266262]
[1762557957830,2.9,162.31,162.3,0.04266262]
[1762557958027,10.37066207,162.32,162.3,0.04266262]
[1762557958735,2.9,162.31,162.3,0.04266262]
[1762557959832,7.47066207,162.32,162.3,3.00266262]
[1762557960333,10.37066207,162.32,162.3,0.04266262]
[1762557960727,2.9,162.31,162.3,0.04266262]
[1762557961423,0.04113064,162.33,162.3,3.00266262]
[1762557961622,7.59321157,162.39,162.3,3.00266262]
[1762557961623,2.9,162.38,162.31,2.96]
[1762557962128,8.4451,162.38,162.32,2.96]
[1762557962730,3.21365033,162.37,162.34,3.05]
[1762557966245,8.75905033,162.37,162.34,3.05]
[1762557968639,3.21365033,162.37,162.34,3.05]
[1762557969942,8.75905033,162.37,162.34,3.05]
[1762557970436,8.7157,162.36,162.33,0.04476764]
[1762557970644,3.17,162.36,162.33,0.04476764]
[1762557971041,8.7158,162.36,162.33,0.04476764]
[1762557971738,3.17,162.35,162.33,0.04476764]
[1762557972846,8.7161,162.35,162.33,0.04476764]
[1762557973248,3.17,162.34,162.33,0.04476764]
[1762557973945,8.7161,162.35,162.33,0.04476764]
[1762557975145,3.17,162.34,162.33,0.04476764]
[1762557979649,7.51228523,162.34,162.33,0.04476764]
[1762557995267,7.5147986,162.34,162.33,0.04476764]
[1762558002358,4.3447986,162.34,162.33,2.97476764]
[1762558002866,7.3147986,162.34,162.33,0.04476764]
[1762558003570,4.3447986,162.34,162.33,2.97476764]
[1762558004073,7.3147986,162.34,162.33,0.04476764]
[1762558009775,2.97,162.34,162.33,0.04476764]
[1762558011069,2.97,162.36,162.33,2.97476764]
[1762558011268,2.97,162.36,162.33,0.04476764]
[1762558012572,2.97,162.34,162.33,0.04476764]
[1762558022087,2.97,162.36,162.33,5.9814679]
[1762558022478,3.0,162.34,162.33,0.04476764]
[1762558029981,3.0,162.36,162.33,2.95476764]
[1762558032095,8.5458,162.36,162.33,2.95476764]
[1762558035089,5.5461,162.35,162.33,2.95476764]
[1762558035796,8.5461,162.35,162.33,2.95476764]
[1762558036896,3.04365033,162.37,162.33,2.95476764]
[1762558039001,3.0,162.35,162.33,2.95476764]
[1762558039695,8.5461,162.35,162.33,0.04476764]
[1762558039888,3.0,162.34,162.33,0.04476764]
[1762558045897,8.55280026,162.35,162.32,6.16033945]
[1762558045898,8.5467,162.33,162.32,6.16033945]
[1762558046104,8.5467,162.33,162.32,3.2]
[1762558046301,10.47216865,162.33,162.32,3.2]
[1762558047304,3.0,162.29,162.25,4.71787955]
[1762558047493,3.0,162.28,162.25,4.71787955]
[1762558048202,3.0419177,162.28,162.25,4.7632787]
[1762558048998,8.5904177,162.28,162.25,4.7632787]
[1762558051005,0.0419177,162.28,162.26,2.91]
[1762558051202,3.0419177,162.28,162.26,2.91]
[1762558051399,3.0419177,162.28,162.25,1.8532787]
[1762558051600,0.0419177,162.28,162.26,2.91]
[1762558053111,2.9419177,162.28,162.26,2.91]
[1762558053305,2.9419177,162.28,162.25,1.8532787]
[1762558053809,2.9419177,162.28,162.25,4.9232787]
[1762558054011,8.4904177,162.28,162.25,4.9232787]
[1762558055102,8.4488,162.27,162.25,1.8532787]
[1762558055808,8.4488,162.27,162.25,4.9232787]
[1762558056806,8.4488,162.27,162.25,1.8532787]
[1762558057610,8.4488,162.27,162.25,4.9232787]
[1762558058601,2.9,162.27,162.25,4.9232787]
[1762558058910,0.0419177,162.28,162.26,3.07]
[1762558064518,2.96,162.34,162.27,3.13]
[1762558064818,2.96,162.34,162.28,3.13]
[1762558065014,8.5071,162.32,162.28,3.13]
[1762558065419,8.54674701,162.32,162.28,3.1763365]
[1762558065719,2.99964701,162.32,162.28,3.1763365]
[1762558065921,0.03964701,162.32,162.28,3.1763365]
[1762558066313,0.03964701,162.32,162.28,8.7246365]
[1762558066513,0.03964701,162.32,162.29,3.13]
[1762558069426,8.54674701,162.32,162.29,3.13]
[1762558070126,2.96,162.3,162.28,0.0463365]
[1762558071120,8.5078,162.3,162.28,0.0463365]
[1762558074327,2.96,162.29,162.28,0.0463365]
[1762558078232,2.96,162.29,162.28,0.0044188]
[1762558081431,7.51231566,162.32,162.28,0.0044188]
[1762558081627,2.96,162.31,162.28,0.0044188]
[1762558082430,3.15964701,162.32,162.28,3.0244188]
[1762558083031,3.15964701,162.32,162.29,3.02]
[1762558089630,3.12,162.31,162.28,0.0044188]
[1762558090137,3.12,162.29,162.28,0.0044188]
[1762558092837,3.12,162.27,162.24,4.14]
[1762558093036,5.04546865,162.25,162.24,4.14]
[1762558093231,1.72,162.21,162.16,3.02]
[1762558093739,0.04357832,162.2,162.18,3.02]
[1762558094134,1.76357832,162.2,162.17,0.04050405]
[1762558094340,1.76357832,162.2,162.17,3.06050405]
[1762558096043,0.04357832,162.2,162.17,3.06050405]
[1762558099845,0.04357832,162.2,162.18,3.02]
[1762558100244,3.12,162.11,162.02,7.66034603]
[1762558100448,3.12,162.11,161.92,1.83165642]
[1762558100647,3.12,162.11,161.99,1.92546865]
[1762558100842,1.92546865,162.1,161.99,1.92546865]
[1762558101048,8.6754,162.08,161.99,1.92546865]
[1762558101247,0.04127098,162.05,162.02,0.04675057]
[1762558102142,0.04127098,162.05,162.03,3.02]
[1762558106451,3.16127098,162.05,162.02,0.04675057]
[1762558109355,3.16127098,162.05,162.02,3.06675057]
[1762558109356,0.04127098,162.05,162.02,3.06675057]
[1762558110658,3.16127098,162.05,162.02,3.06675057]
[1762558110964,3.16127098,162.05,162.02,0.04675057]
[1762558111661,3.16127098,162.05,162.02,3.06675057]
[1762558111960,0.04127098,162.05,162.02,3.06675057]
[1762558113063,3.20127098,162.05,162.02,3.06675057]
[1762558114958,3.20127098,162.05,162.02,0.04675057]
[1762558115361,8.7168,162.04,162.02,0.04675057]
[1762558115766,4.43286284,162.14,162.02,3.18675057]
[1762558115969,8.7145,162.11,162.04,3.14]
[1762558116567,3.16,162.11,162.04,3.14]
[1762558116869,0.04408415,162.09,162.07,3.14]
[1762558120169,0.04408415,162.09,162.06,0.04214978]
[1762558120170,3.20408415,162.09,162.06,0.04214978]
[1762558122071,3.12,162.07,162.06,0.04214978]
[1762558123173,4.36,162.07,162.06,0.04214978]
[1762558125274,4.36,162.07,161.97,8.5988]
[1762558125275,3.12,162.04,161.98,2.99]
[1762558126164,3.12,162.09,161.98,2.99]
[1762558126363,0.04418589,162.03,162.0,2.99]
[1762558126564,0.04080155,162.03,162.0,3.03227742]
[1762558126862,0.04080155,162.03,162.02,2.99]
[1762558129267,0.04080155,162.03,162.01,2.99]
[1762558129864,3.16080155,162.03,162.0,0.04227742]
[1762558130567,3.16080155,162.03,162.0,3.03227742]
[1762558131272,3.12,162.01,161.97,3.00315622]
[1762558132267,3.12,162.0,161.97,3.02696101]
[1762558132467,8.6782,162.0,161.97,3.02696101]
[1762558132667,3.12,162.0,161.97,3.02696101]
[1762558132867,0.04080155,162.03,161.97,6.01696101]
[1762558133068,4.50080225,162.03,161.97,6.01696101]
[1762558133272,10.06223165,162.03,161.97,6.01696101]
[1762558133574,7.58411222,162.02,161.97,6.01696101]
[1762558133973,3.12,162.02,161.97,6.01696101]
[1762558134269,3.12,162.0,161.97,3.02696101]
[1762558135673,3.12,161.99,161.97,3.02696101]
[1762558136674,8.6785,161.99,161.97,3.02696101]
[1762558137074,4.47901028,161.98,161.97,3.02696101]
[1762558137275,7.59901028,161.98,161.97,0.02380479]
[1762558137678,4.47901028,161.98,161.97,0.02380479]
[1762558137879,3.16573365,162.0,161.97,0.02380479]
[1762558138069,4.47925008,161.99,161.97,0.02380479]
[1762558138264,3.16573365,162.0,161.97,0.02380479]
[1762558138466,3.12,161.98,161.97,0.02380479]
[1762558138671,7.60109365,161.98,161.97,0.02380479]
[1762558142172,4.48109365,161.98,161.97,2.98380479]
[1762558142482,4.48109365,161.98,161.97,0.02380479]
[1762558142872,7.39109365,161.98,161.97,0.02380479]
[1762558143972,4.48109365,161.98,161.97,0.02380479]
[1762558144776,0.04573365,162.0,161.97,2.98380479]
[1762558144978,4.49724961,161.99,161.97,2.98380479]
[1762558145179,4.50417309,161.98,161.97,2.98380479]
[1762558145981,0.04573365,162.0,161.97,2.98380479]
[1762558148882,4.48764441,161.99,161.97,0.02380479]
[1762558149082,4.48728607,161.98,161.97,0.02380479]
[1762558149279,2.95573365,162.0,161.97,0.02380479]
[1762558149585,4.48700608,161.99,161.97,2.98380479]
[1762558149784,2.95573365,162.0,161.97,2.98380479]
[1762558149979,4.48703818,161.99,161.97,2.98380479]
[1762558150180,2.95573365,162.0,161.97,2.98380479]
[1762558150380,4.4871553,161.99,161.97,2.98380479]
[1762558150581,2.95573365,162.0,161.97,2.98380479]
[1762558150879,4.4871553,161.99,161.97,2.98380479]
[1762558151076,0.04573365,162.0,161.97,2.98380479]
[1762558162391,5.60383365,162.0,161.97,2.98380479]
[1762558164788,0.04573365,162.0,161.97,2.98380479]
[1762558165994,5.60383365,162.0,161.97,2.98380479]
[1762558166486,4.48842883,161.99,161.97,2.98380479]
[1762558166686,5.60383365,162.0,161.97,2.98380479]
[1762558166980,4.48845579,161.99,161.97,2.98380479]
[1762558167182,5.60383365,162.0,161.97,2.98380479]
[1762558167387,2.91,161.98,161.97,0.02380479]
[1762558167683,7.39913857,161.98,161.97,0.02380479]
[1762558168496,7.39913857,161.98,161.97,2.98380479]
[1762558168497,4.48913857,161.98,161.97,2.98380479]
[1762558168992,4.48913857,161.98,161.93,4.64]
[1762558169197,7.39913857,161.97,161.94,2.96]
[1762558169385,2.91,161.97,161.94,2.96]
[1762558169587,2.91,161.97,161.93,4.64]
[1762558169785,2.91,161.95,161.93,4.64]
[1762558170391,2.91,161.95,161.93,7.6]
[1762558170592,8.51360492,161.96,161.93,7.6]
[1762558170798,4.48760642,161.95,161.93,7.6]
[1762558171001,8.51360492,161.96,161.93,7.6]
[1762558171194,4.48760636,161.95,161.93,7.6]
[1762558171400,8.51360492,161.96,161.93,7.6]
[1762558171605,4.48689211,161.95,161.93,7.6]
[1762558171901,8.51360492,161.96,161.93,7.6]
[1762558172102,4.4866473,161.95,161.93,7.6]
[1762558172304,8.51360492,161.96,161.93,7.6]
[1762558172596,4.48847987,161.95,161.93,7.6]
[1762558172801,5.60360492,161.96,161.94,2.96]
[1762558172996,4.48850417,161.95,161.94,2.96]
[1762558175004,0.04410492,161.96,161.94,2.96]
[1762558175594,5.5577,162.01,161.96,2.96]
[1762558175796,4.49026886,162.0,161.96,2.96]
[1762558175996,4.49026886,161.99,161.96,2.96]
[1762558176196,4.49026886,161.98,161.96,2.96]
[1762558176393,4.49026886,161.97,161.96,2.96]
[1762558180803,4.49026886,161.97,161.95,2.99994192]
[1762558180992,8.68549136,161.98,161.95,2.99994192]
[1762558181297,4.48847403,161.97,161.95,2.99994192]
[1762558181604,8.68549136,161.98,161.95,2.99994192]
[1762558181805,4.48857987,161.97,161.95,2.99994192]
[1762558182001,8.68549136,161.98,161.95,2.99994192]
[1762558182200,4.48850669,161.97,161.95,2.99994192]
[1762558182501,4.48838118,161.96,161.95,2.99994192]
[1762558182804,8.68549136,161.98,161.95,2.99994192]
[1762558183008,4.48844948,161.97,161.95,2.99994192]
[1762558183196,8.68549136,161.98,161.95,2.99994192]
[1762558183400,4.48835876,161.97,161.95,2.99994192]
[1762558183700,8.68549136,161.98,161.95,2.99994192]
[1762558184009,4.48854873,161.97,161.95,2.99994192]
[1762558184202,4.48854873,161.96,161.95,2.99994192]
[1762558184706,0.04679136,161.98,161.95,2.99994192]
[1762558184904,4.48812578,161.97,161.95,2.99994192]
[1762558185108,3.02679136,161.98,161.95,2.99994192]
[1762558185313,4.48812268,161.97,161.95,2.99994192]
[1762558185504,3.02679136,161.98,161.95,2.99994192]
[1762558185704,4.48820465,161.97,161.95,2.99994192]
[1762558186003,3.02679136,161.98,161.95,2.99994192]
[1762558186201,4.48820465,161.97,161.95,2.99994192]
[1762558186401,3.02679136,161.98,161.95,2.99994192]
[1762558186603,4.48830738,161.97,161.95,2.99994192]
[1762558186803,4.48830738,161.96,161.95,2.99994192]
[1762558188110,3.02679136,161.98,161.95,2.99994192]
[1762558188406,2.98,161.96,161.95,0.03994192]
[1762558188605,4.46445685,161.96,161.95,0.03994192]
[1762558189313,7.44445685,161.96,161.95,0.03994192]
[1762558190007,4.46445685,161.96,161.95,3.11994192]
[1762558190211,2.98,161.97,161.95,3.11994192]
[1762558191401,4.46498613,161.96,161.95,0.03994192]
[1762558196618,7.44498613,161.96,161.95,0.03994192]